[Event "*** SCC Grand Prix: Titled Tuesday Blitz"]
[Site "Chess.com"]
[Date "2020.08.11"]
[Round "6"]
[White "NotFischer"]
[Black "LaPorfia"]
[Result "0-1"]
[WhiteElo "2085"]
[BlackElo "2246"]
[TimeControl "180+1"]
[EndTime "11:07:21 PDT"]
[Termination "LaPorfia won by checkmate"]

1. e4 {[%clk 0:03:00.9]} 1... d5 {[%clk 0:02:59.5]} 2. exd5 {[%clk 0:03:00.1]}
2... Nf6 {[%clk 0:02:59.7]} 3. Nf3 {[%clk 0:02:59.3]} 3... Bg4 {[%clk
0:02:58.9]} 4. Bb5+ {[%clk 0:02:58.1]} 4... Nbd7 {[%clk 0:02:58.1]} 5. h3 {[%clk
0:02:52.9]} 5... Bh5 {[%clk 0:02:54.6]} 6. Be2 {[%clk 0:02:50.1]} 6... Nxd5
{[%clk 0:02:52.3]} 7. d4 {[%clk 0:02:47.2]} 7... e6 {[%clk 0:02:51.9]} 8. c4
{[%clk 0:02:45.7]} 8... N5f6 {[%clk 0:02:51.7]} 9. Nc3 {[%clk 0:02:44.8]} 9...
c5 {[%clk 0:02:50.7]} 10. d5 {[%clk 0:02:42.2]} 10... exd5 {[%clk 0:02:47.5]}
11. cxd5 {[%clk 0:02:41.5]} 11... a6 {[%clk 0:02:37.9]} 12. a4 {[%clk
0:02:32.9]} 12... Bd6 {[%clk 0:02:36.7]} 13. O-O {[%clk 0:02:31]} 13... O-O
{[%clk 0:02:36]} 14. Bg5 {[%clk 0:02:30.4]} 14... h6 {[%clk 0:02:34.4]} 15. Be3
{[%clk 0:02:28]} 15... Re8 {[%clk 0:02:31.6]} 16. Qd2 {[%clk 0:02:25.9]} 16...
Rc8 {[%clk 0:01:54.2]} 17. Rad1 {[%clk 0:02:18.8]} 17... Qe7 {[%clk 0:01:48]}
18. Rfe1 {[%clk 0:02:15]} 18... Ne4 {[%clk 0:01:44.5]} 19. Nxe4 {[%clk
0:01:47.3]} 19... Qxe4 {[%clk 0:01:45.4]} 20. b3 {[%clk 0:01:46.8]} 20... c4
{[%clk 0:01:20.3]} 21. bxc4 {[%clk 0:01:41.4]} 21... Bxf3 {[%clk 0:01:16.9]} 22.
Bxf3 {[%clk 0:01:36.3]} 22... Qxc4 {[%clk 0:01:16.8]} 23. Bg4 {[%clk 0:01:19.3]}
23... Rcd8 {[%clk 0:01:13.3]} 24. Rb1 {[%clk 0:00:40.3]} 24... Ne5 {[%clk
0:01:04.8]} 25. Be2 {[%clk 0:00:26.2]} 25... Qxa4 {[%clk 0:01:02.9]} 26. Rxb7
{[%clk 0:00:25.7]} 26... Nc4 {[%clk 0:00:57]} 27. Bxc4 {[%clk 0:00:25.2]} 27...
Qxc4 {[%clk 0:00:56.7]} 28. Rc1 {[%clk 0:00:19.8]} 28... Qe4 {[%clk 0:00:46.9]}
29. Rb6 {[%clk 0:00:15.3]} 29... a5 {[%clk 0:00:32.5]} 30. Qxa5 {[%clk
0:00:14.1]} 30... Qe5 {[%clk 0:00:27.4]} 31. g3 {[%clk 0:00:11.1]} 31... Qh5
{[%clk 0:00:26.1]} 32. Kh2 {[%clk 0:00:09.7]} 32... Rxe3 {[%clk 0:00:24.7]} 33.
Rxd6 {[%clk 0:00:07.6]} 33... Rxd6 {[%clk 0:00:22.5]} 34. fxe3 {[%clk
0:00:07.5]} 34... Qe2+ {[%clk 0:00:21.8]} 35. Kh1 {[%clk 0:00:05.5]} 35... Qf3+
{[%clk 0:00:21.3]} 36. Kh2 {[%clk 0:00:05.8]} 36... Qf2+ {[%clk 0:00:20.4]} 37.
Kh1 {[%clk 0:00:06]} 37... Qxg3 {[%clk 0:00:15.6]} 38. Qc5 {[%clk 0:00:04.7]}
38... Qxh3+ {[%clk 0:00:15.3]} 39. Kg1 {[%clk 0:00:04.9]} 39... Rg6+ {[%clk
0:00:15.8]} 40. Kf2 {[%clk 0:00:04.6]} 40... Qg3+ {[%clk 0:00:15.9]} 41. Ke2
{[%clk 0:00:04.5]} 41... Kh7 {[%clk 0:00:14.6]} 42. Kd3 {[%clk 0:00:04.3]} 42...
Qg4 {[%clk 0:00:12.9]} 43. Rc3 {[%clk 0:00:04.3]} 43... Qf5+ {[%clk 0:00:12.7]}
44. Kd2 {[%clk 0:00:04.5]} 44... Rg2+ {[%clk 0:00:12.5]} 45. Kc1 {[%clk
0:00:04.9]} 45... Qf1# {[%clk 0:00:12.4]} 0-1

[Event "*** SCC Grand Prix: Titled Tuesday Blitz"]
[Site "Chess.com"]
[Date "2020.08.11"]
[Round "6"]
[White "OparinGrigoriy"]
[Black "GregShahade"]
[Result "0-1"]
[WhiteElo "2925"]
[BlackElo "2727"]
[TimeControl "180+1"]
[EndTime "11:07:25 PDT"]
[Termination "GregShahade won on time"]

1. d4 {[%clk 0:03:00.9]} 1... Nf6 {[%clk 0:02:59.7]} 2. c4 {[%clk 0:03:01.4]}
2... g6 {[%clk 0:02:59.7]} 3. Nf3 {[%clk 0:03:01.9]} 3... Bg7 {[%clk 0:02:59.6]}
4. g3 {[%clk 0:03:02.5]} 4... d5 {[%clk 0:02:57.9]} 5. cxd5 {[%clk 0:03:02.2]}
5... Nxd5 {[%clk 0:02:58.8]} 6. Bg2 {[%clk 0:03:03]} 6... Nb6 {[%clk 0:02:56.8]}
7. O-O {[%clk 0:03:02.6]} 7... Nc6 {[%clk 0:02:57]} 8. e3 {[%clk 0:03:03.2]}
8... O-O {[%clk 0:02:56.3]} 9. Nc3 {[%clk 0:03:03.9]} 9... Re8 {[%clk
0:02:56.6]} 10. h3 {[%clk 0:03:04.2]} 10... a5 {[%clk 0:02:48.1]} 11. d5 {[%clk
0:03:03.4]} 11... Ne5 {[%clk 0:02:48.3]} 12. Nxe5 {[%clk 0:03:03.3]} 12... Bxe5
{[%clk 0:02:49.2]} 13. e4 {[%clk 0:03:03.9]} 13... e6 {[%clk 0:02:45.9]} 14. Bh6
{[%clk 0:03:03.9]} 14... exd5 {[%clk 0:02:45.4]} 15. exd5 {[%clk 0:03:04.8]}
15... Nc4 {[%clk 0:02:42.6]} 16. Qd3 {[%clk 0:02:56.1]} 16... Nxb2 {[%clk
0:02:31.3]} 17. Qc2 {[%clk 0:02:56.5]} 17... Nc4 {[%clk 0:02:26.3]} 18. Nb5
{[%clk 0:02:56.9]} 18... Nb6 {[%clk 0:01:58.1]} 19. Rac1 {[%clk 0:02:25.4]}
19... Bf5 {[%clk 0:01:56.6]} 20. Qd2 {[%clk 0:02:23.7]} 20... Qd7 {[%clk
0:01:51.5]} 21. g4 {[%clk 0:02:08.9]} 21... Bxg4 {[%clk 0:01:43.2]} 22. Nxc7
{[%clk 0:01:59.6]} 22... Bxc7 {[%clk 0:01:21.1]} 23. hxg4 {[%clk 0:01:59.8]}
23... Qd6 {[%clk 0:01:14.3]} 24. Rxc7 {[%clk 0:01:49.9]} 24... Qxc7 {[%clk
0:01:12.2]} 25. d6 {[%clk 0:01:50.4]} 25... Qc5 {[%clk 0:01:03.9]} 26. Rc1
{[%clk 0:01:45.4]} 26... Qb4 {[%clk 0:01:02.3]} 27. Qxb4 {[%clk 0:01:20.7]}
27... axb4 {[%clk 0:01:03.2]} 28. Bxb7 {[%clk 0:01:21]} 28... Rxa2 {[%clk
0:00:59.5]} 29. Bc6 {[%clk 0:01:17.3]} 29... Rd8 {[%clk 0:00:51.3]} 30. d7
{[%clk 0:01:06.8]} 30... b3 {[%clk 0:00:51.4]} 31. Kg2 {[%clk 0:00:27.5]} 31...
Rc2 {[%clk 0:00:49.3]} 32. Re1 {[%clk 0:00:25.1]} 32... Nxd7 {[%clk 0:00:41]}
33. Bxd7 {[%clk 0:00:26]} 33... b2 {[%clk 0:00:40.7]} 34. Ba4 {[%clk 0:00:05.1]}
34... Rc4 {[%clk 0:00:40.5]} 35. Bb3 {[%clk 0:00:04.8]} 35... Rxg4+ {[%clk
0:00:39.7]} 36. Kh3 {[%clk 0:00:05]} 36... Rb4 {[%clk 0:00:35.4]} 37. Ba2 {[%clk
0:00:05.5]} 37... Rb5 {[%clk 0:00:33.7]} 38. Kg3 {[%clk 0:00:04.7]} 38... Ra5
{[%clk 0:00:24.5]} 39. Bb1 {[%clk 0:00:04.8]} 39... Rc5 {[%clk 0:00:25]} 40. Be3
{[%clk 0:00:04.8]} 40... Rcd5 {[%clk 0:00:20.6]} 41. Re2 {[%clk 0:00:04.9]}
41... Rb8 {[%clk 0:00:19.8]} 42. Bf4 {[%clk 0:00:05.2]} 42... Rb3+ {[%clk
0:00:19.1]} 43. f3 {[%clk 0:00:02.6]} 43... g5 {[%clk 0:00:16.2]} 44. Bd2 {[%clk
0:00:02.1]} 44... h5 {[%clk 0:00:13.1]} 45. Kf2 {[%clk 0:00:01.9]} 45... Rc5
{[%clk 0:00:09.7]} 46. Be3 {[%clk 0:00:01.4]} 46... Rc1 {[%clk 0:00:09.3]} 0-1

[Event "*** SCC Grand Prix: Titled Tuesday Blitz"]
[Site "Chess.com"]
[Date "2020.08.11"]
[Round "6"]
[White "aa175"]
[Black "Carnivoras"]
[Result "0-1"]
[WhiteElo "2479"]
[BlackElo "2655"]
[TimeControl "180+1"]
[EndTime "11:07:25 PDT"]
[Termination "Carnivoras won on time"]

1. d4 {[%clk 0:03:00.9]} 1... d5 {[%clk 0:02:59.5]} 2. Bf4 {[%clk 0:03:00]} 2...
Nf6 {[%clk 0:02:59.2]} 3. e3 {[%clk 0:03:00.4]} 3... Bf5 {[%clk 0:02:58.4]} 4.
Nf3 {[%clk 0:02:56.9]} 4... e6 {[%clk 0:02:58.4]} 5. Ne5 {[%clk 0:02:52.4]} 5...
Bd6 {[%clk 0:02:57.4]} 6. Nd2 {[%clk 0:02:46.6]} 6... O-O {[%clk 0:02:56.4]} 7.
Bd3 {[%clk 0:02:45.9]} 7... Ne4 {[%clk 0:02:49.2]} 8. Bxe4 {[%clk 0:02:30.8]}
8... Bxe4 {[%clk 0:02:48.9]} 9. Nxe4 {[%clk 0:02:31.3]} 9... dxe4 {[%clk
0:02:49.2]} 10. h4 {[%clk 0:02:28.2]} 10... f6 {[%clk 0:02:45.8]} 11. Nc4 {[%clk
0:02:23.3]} 11... Bxf4 {[%clk 0:02:45]} 12. exf4 {[%clk 0:02:24.2]} 12... Nc6
{[%clk 0:02:36.7]} 13. c3 {[%clk 0:02:23.8]} 13... Qd5 {[%clk 0:02:36.2]} 14.
Ne3 {[%clk 0:02:23.5]} 14... Qd6 {[%clk 0:02:33.9]} 15. Qb3 {[%clk 0:02:17]}
15... Rab8 {[%clk 0:02:29.6]} 16. f5 {[%clk 0:02:15.2]} 16... Nd8 {[%clk
0:02:23.3]} 17. fxe6 {[%clk 0:02:05.1]} 17... Qxe6 {[%clk 0:02:20.7]} 18. h5
{[%clk 0:01:59.1]} 18... Qxb3 {[%clk 0:02:14.4]} 19. axb3 {[%clk 0:01:58.8]}
19... a6 {[%clk 0:02:15.1]} 20. h6 {[%clk 0:01:57.6]} 20... g6 {[%clk 0:02:14]}
21. Nd5 {[%clk 0:01:57.1]} 21... Ne6 {[%clk 0:02:07.1]} 22. g3 {[%clk 0:01:47]}
22... Rbd8 {[%clk 0:02:03.4]} 23. Ne3 {[%clk 0:01:42.3]} 23... f5 {[%clk
0:02:01.5]} 24. O-O-O {[%clk 0:01:37.1]} 24... f4 {[%clk 0:01:15.5]} 25. gxf4
{[%clk 0:01:38]} 25... Nxf4 {[%clk 0:01:15.6]} 26. Ng4 {[%clk 0:01:08.1]} 26...
Nd3+ {[%clk 0:01:11.2]} 27. Rxd3 {[%clk 0:01:08.3]} 27... exd3 {[%clk
0:01:11.6]} 28. Kd2 {[%clk 0:01:08.9]} 28... Rf4 {[%clk 0:01:08.1]} 29. Rg1
{[%clk 0:01:08.9]} 29... c5 {[%clk 0:00:57.9]} 30. dxc5 {[%clk 0:00:58]} 30...
Kf8 {[%clk 0:00:57.7]} 31. b4 {[%clk 0:00:54.9]} 31... Rd5 {[%clk 0:00:56.7]}
32. b3 {[%clk 0:00:45.8]} 32... Rg5 {[%clk 0:00:55]} 33. f3 {[%clk 0:00:42.6]}
33... Rxf3 {[%clk 0:00:54.5]} 34. Rg2 {[%clk 0:00:23.5]} 34... Rf4 {[%clk
0:00:54]} 35. Ne3 {[%clk 0:00:23.2]} 35... Rxg2+ {[%clk 0:00:53.3]} 36. Nxg2
{[%clk 0:00:24.1]} 36... Rf2+ {[%clk 0:00:53.4]} 37. Kxd3 {[%clk 0:00:24.7]}
37... Rxg2 {[%clk 0:00:53.6]} 38. Kd4 {[%clk 0:00:23.2]} 38... Rh2 {[%clk
0:00:53.6]} 39. c4 {[%clk 0:00:22.7]} 39... Rxh6 {[%clk 0:00:53.3]} 40. b5
{[%clk 0:00:22.4]} 40... g5 {[%clk 0:00:51.9]} 41. c6 {[%clk 0:00:11.8]} 41...
axb5 {[%clk 0:00:36]} 42. cxb5 {[%clk 0:00:04.7]} 42... bxc6 {[%clk 0:00:29.8]}
43. b6 {[%clk 0:00:04.5]} 43... Rd6+ {[%clk 0:00:29.7]} 44. Kc5 {[%clk
0:00:04.3]} 44... Rd3 {[%clk 0:00:29.3]} 45. b4 {[%clk 0:00:01.7]} 45... g4
{[%clk 0:00:26.6]} 46. b7 {[%clk 0:00:01.5]} 46... Rd8 {[%clk 0:00:26.5]} 47.
Kb6 {[%clk 0:00:01.6]} 47... g3 {[%clk 0:00:26.5]} 48. Kxc6 {[%clk 0:00:01.4]}
48... g2 {[%clk 0:00:26.3]} 49. Kc7 {[%clk 0:00:01.8]} 49... Re8 {[%clk
0:00:25.9]} 50. b5 {[%clk 0:00:01.2]} 50... g1=Q {[%clk 0:00:25.8]} 0-1

[Event "*** SCC Grand Prix: Titled Tuesday Blitz"]
[Site "Chess.com"]
[Date "2020.08.11"]
[Round "6"]
[White "Casablanca"]
[Black "mfwagnerpeixoto"]
[Result "1-0"]
[WhiteElo "2456"]
[BlackElo "2282"]
[TimeControl "180+1"]
[EndTime "11:07:25 PDT"]
[Termination "Casablanca won on time"]

1. d4 {[%clk 0:03:00.9]} 1... Nf6 {[%clk 0:02:59]} 2. Bg5 {[%clk 0:03:00.2]}
2... Ne4 {[%clk 0:02:54.3]} 3. Bf4 {[%clk 0:02:59.7]} 3... d5 {[%clk 0:02:54.8]}
4. e3 {[%clk 0:02:59.6]} 4... c6 {[%clk 0:02:54.5]} 5. Bd3 {[%clk 0:02:59.9]}
5... g6 {[%clk 0:02:52.2]} 6. c3 {[%clk 0:02:57.3]} 6... Bg7 {[%clk 0:02:51.4]}
7. Nd2 {[%clk 0:02:57]} 7... Nxd2 {[%clk 0:02:50.8]} 8. Qxd2 {[%clk 0:02:57.9]}
8... O-O {[%clk 0:02:50]} 9. Nf3 {[%clk 0:02:58.4]} 9... Bg4 {[%clk 0:02:47.9]}
10. Ne5 {[%clk 0:02:56.2]} 10... Be6 {[%clk 0:02:47.5]} 11. O-O {[%clk
0:02:55.3]} 11... f6 {[%clk 0:02:43.6]} 12. Nf3 {[%clk 0:02:54.2]} 12... Bf7
{[%clk 0:02:43.1]} 13. e4 {[%clk 0:02:47.8]} 13... e6 {[%clk 0:02:40.2]} 14. e5
{[%clk 0:02:45.6]} 14... Nd7 {[%clk 0:02:36.4]} 15. Rae1 {[%clk 0:02:40]} 15...
c5 {[%clk 0:02:28]} 16. exf6 {[%clk 0:02:33.7]} 16... Bxf6 {[%clk 0:02:26.9]}
17. Ne5 {[%clk 0:02:32.7]} 17... cxd4 {[%clk 0:02:17.7]} 18. cxd4 {[%clk
0:02:30.3]} 18... Be8 {[%clk 0:02:07.7]} 19. Re3 {[%clk 0:02:05.5]} 19... Bg5
{[%clk 0:01:45.4]} 20. Bxg5 {[%clk 0:01:55.1]} 20... Qxg5 {[%clk 0:01:45]} 21.
Qe2 {[%clk 0:01:46.4]} 21... Nxe5 {[%clk 0:01:20.6]} 22. Rxe5 {[%clk 0:01:42.4]}
22... Qf6 {[%clk 0:01:20]} 23. Qe3 {[%clk 0:01:18.2]} 23... Bd7 {[%clk
0:01:18.6]} 24. Be2 {[%clk 0:01:18.3]} 24... Qf4 {[%clk 0:01:11.7]} 25. Rd1
{[%clk 0:00:28.8]} 25... Rac8 {[%clk 0:01:03.1]} 26. Bd3 {[%clk 0:00:26.3]}
26... Qf6 {[%clk 0:00:54.2]} 27. g3 {[%clk 0:00:23.2]} 27... Rc7 {[%clk
0:00:48.3]} 28. Bf1 {[%clk 0:00:21.9]} 28... Rc2 {[%clk 0:00:44.6]} 29. Rd2
{[%clk 0:00:20.4]} 29... Rc1 {[%clk 0:00:42.6]} 30. Kg2 {[%clk 0:00:16.9]} 30...
Ra1 {[%clk 0:00:32]} 31. a3 {[%clk 0:00:16.5]} 31... a6 {[%clk 0:00:24.9]} 32.
Be2 {[%clk 0:00:16.7]} 32... Re1 {[%clk 0:00:22.4]} 33. Qf3 {[%clk 0:00:13.4]}
33... Qe7 {[%clk 0:00:13.9]} 34. Qc3 {[%clk 0:00:11.4]} 34... Qf6 {[%clk
0:00:11.1]} 35. Qe3 {[%clk 0:00:11.5]} 35... Qe7 {[%clk 0:00:07.6]} 36. Rd1
{[%clk 0:00:11.7]} 36... Rxd1 {[%clk 0:00:06.2]} 37. Bxd1 {[%clk 0:00:12.6]}
37... Qd6 {[%clk 0:00:05.8]} 38. Bg4 {[%clk 0:00:12.7]} 38... Re8 {[%clk
0:00:05.1]} 39. h4 {[%clk 0:00:13.1]} 39... Kg7 {[%clk 0:00:04.4]} 40. h5 {[%clk
0:00:13.4]} 40... Rf8 {[%clk 0:00:04.3]} 41. h6+ {[%clk 0:00:13.8]} 41... Kg8
{[%clk 0:00:04.2]} 42. Bxe6+ {[%clk 0:00:13.5]} 42... Bxe6 {[%clk 0:00:04]} 43.
Rxe6 {[%clk 0:00:14.4]} 43... Qd7 {[%clk 0:00:03.8]} 44. Qe5 {[%clk 0:00:14.6]}
44... Qf7 {[%clk 0:00:03.1]} 45. f4 {[%clk 0:00:13.4]} 45... Qd7 {[%clk
0:00:02]} 46. Re7 {[%clk 0:00:13.4]} 1-0

[Event "*** SCC Grand Prix: Titled Tuesday Blitz"]
[Site "Chess.com"]
[Date "2020.08.11"]
[Round "6"]
[White "Nafania1"]
[Black "ManuDavid2910"]
[Result "0-1"]
[WhiteElo "2469"]
[BlackElo "2642"]
[TimeControl "180+1"]
[EndTime "11:07:27 PDT"]
[Termination "ManuDavid2910 won by resignation"]

1. e4 {[%clk 0:03:00.9]} 1... c5 {[%clk 0:02:59.4]} 2. Nf3 {[%clk 0:03:00.8]}
2... Nc6 {[%clk 0:02:59.4]} 3. Bb5 {[%clk 0:03:00.7]} 3... e6 {[%clk 0:02:59.6]}
4. Nc3 {[%clk 0:02:57.8]} 4... Nge7 {[%clk 0:02:59.4]} 5. O-O {[%clk 0:02:56.1]}
5... g6 {[%clk 0:02:59.4]} 6. d4 {[%clk 0:02:54.1]} 6... cxd4 {[%clk 0:03:00.3]}
7. Nxd4 {[%clk 0:02:54.3]} 7... Bg7 {[%clk 0:03:01.2]} 8. Be3 {[%clk 0:02:50.7]}
8... O-O {[%clk 0:03:00.9]} 9. Be2 {[%clk 0:02:44.8]} 9... d5 {[%clk 0:03:00.7]}
10. exd5 {[%clk 0:02:44.3]} 10... exd5 {[%clk 0:03:01.6]} 11. Bf3 {[%clk
0:02:42.3]} 11... Ne5 {[%clk 0:03:01.5]} 12. Re1 {[%clk 0:02:30.1]} 12... Nc4
{[%clk 0:02:52.1]} 13. Bg5 {[%clk 0:02:23.7]} 13... f6 {[%clk 0:02:36.4]} 14.
Bc1 {[%clk 0:02:22.7]} 14... Nb6 {[%clk 0:02:26.6]} 15. Bf4 {[%clk 0:02:10.3]}
15... h6 {[%clk 0:02:08.9]} 16. h3 {[%clk 0:02:03.5]} 16... f5 {[%clk
0:02:06.1]} 17. Be5 {[%clk 0:02:00]} 17... Bxe5 {[%clk 0:02:02.9]} 18. Rxe5
{[%clk 0:01:59.7]} 18... Qd6 {[%clk 0:02:03.5]} 19. Qe2 {[%clk 0:01:55]} 19...
Nc6 {[%clk 0:02:03.4]} 20. Nxc6 {[%clk 0:01:51]} 20... bxc6 {[%clk 0:02:04.3]}
21. b3 {[%clk 0:01:44.4]} 21... Bd7 {[%clk 0:01:58.8]} 22. Re1 {[%clk
0:01:43.2]} 22... a5 {[%clk 0:01:49.8]} 23. a4 {[%clk 0:01:31.5]} 23... Qb4
{[%clk 0:01:45.1]} 24. Qd2 {[%clk 0:01:29.8]} 24... Rf7 {[%clk 0:01:22.8]} 25.
Nb1 {[%clk 0:01:24.9]} 25... Qh4 {[%clk 0:01:19.7]} 26. Qc3 {[%clk 0:01:14.7]}
26... Qf6 {[%clk 0:01:16.2]} 27. Qc5 {[%clk 0:01:14.3]} 27... Nc8 {[%clk
0:01:13.8]} 28. Nd2 {[%clk 0:01:06.1]} 28... Nd6 {[%clk 0:01:13.5]} 29. Bxd5
{[%clk 0:00:53.2]} 29... cxd5 {[%clk 0:01:11]} 30. Rxd5 {[%clk 0:00:53.5]} 30...
Ne8 {[%clk 0:00:50.8]} 31. Nc4 {[%clk 0:00:41.2]} 31... Be6 {[%clk 0:00:41.8]}
32. Qc6 {[%clk 0:00:37.5]} 32... Bxd5 {[%clk 0:00:38.4]} 33. Qxd5 {[%clk
0:00:30.3]} 33... Rd8 {[%clk 0:00:37.8]} 34. Qxa5 {[%clk 0:00:26.5]} 34... Nd6
{[%clk 0:00:36.6]} 35. Rd1 {[%clk 0:00:22.5]} 35... Rfd7 {[%clk 0:00:32.9]} 36.
Nb6 {[%clk 0:00:22.5]} 36... Rb7 {[%clk 0:00:19]} 37. Nc4 {[%clk 0:00:22.4]}
37... Nf7 {[%clk 0:00:17.6]} 38. Rxd8+ {[%clk 0:00:21.6]} 38... Qxd8 {[%clk
0:00:18.5]} 39. Qc5 {[%clk 0:00:19.7]} 39... Rd7 {[%clk 0:00:18.4]} 40. g3
{[%clk 0:00:17.5]} 40... Rd1+ {[%clk 0:00:17.4]} 41. Kh2 {[%clk 0:00:17.5]}
41... Qd5 {[%clk 0:00:17.9]} 42. Qc8+ {[%clk 0:00:16.7]} 42... Kg7 {[%clk
0:00:17.4]} 43. g4 {[%clk 0:00:10.5]} 43... f4 {[%clk 0:00:17.3]} 44. f3 {[%clk
0:00:07.6]} 44... Qxf3 {[%clk 0:00:17.1]} 0-1

[Event "*** SCC Grand Prix: Titled Tuesday Blitz"]
[Site "Chess.com"]
[Date "2020.08.11"]
[Round "6"]
[White "DinaBelenkaya"]
[Black "anskam"]
[Result "1-0"]
[WhiteElo "2347"]
[BlackElo "1537"]
[TimeControl "180+1"]
[EndTime "11:07:27 PDT"]
[Termination "DinaBelenkaya won on time"]

1. e4 {[%clk 0:03:00.9]} 1... c5 {[%clk 0:02:58.2]} 2. Nc3 {[%clk 0:02:57.2]}
2... d6 {[%clk 0:02:57.4]} 3. g3 {[%clk 0:02:55.9]} 3... Nf6 {[%clk 0:02:56.3]}
4. Bg2 {[%clk 0:02:55.8]} 4... e5 {[%clk 0:02:55.4]} 5. Nge2 {[%clk 0:02:52.9]}
5... Be7 {[%clk 0:02:33.5]} 6. O-O {[%clk 0:02:47.9]} 6... Nc6 {[%clk
0:02:32.5]} 7. Nd5 {[%clk 0:02:45.8]} 7... O-O {[%clk 0:02:28.3]} 8. Nec3 {[%clk
0:02:45.2]} 8... Be6 {[%clk 0:02:26.7]} 9. d3 {[%clk 0:02:42.3]} 9... a6 {[%clk
0:02:25.6]} 10. a4 {[%clk 0:02:41.2]} 10... Rb8 {[%clk 0:02:22.7]} 11. Bg5
{[%clk 0:02:35.8]} 11... Nxd5 {[%clk 0:02:16.1]} 12. exd5 {[%clk 0:02:36.7]}
12... Bxg5 {[%clk 0:02:13.4]} 13. dxc6 {[%clk 0:02:34.6]} 13... bxc6 {[%clk
0:02:12.5]} 14. Bxc6 {[%clk 0:02:24.5]} 14... Rxb2 {[%clk 0:02:10.9]} 15. a5
{[%clk 0:02:12]} 15... Qc7 {[%clk 0:02:08.5]} 16. Bd5 {[%clk 0:02:05.6]} 16...
Rb4 {[%clk 0:01:58.2]} 17. Qh5 {[%clk 0:01:48.4]} 17... Be7 {[%clk 0:01:48.9]}
18. Qf3 {[%clk 0:01:10.5]} 18... Bg5 {[%clk 0:01:36.8]} 19. h4 {[%clk
0:01:02.6]} 19... Be7 {[%clk 0:01:34.7]} 20. Kg2 {[%clk 0:01:00.2]} 20... Qd7
{[%clk 0:01:30.1]} 21. Rfb1 {[%clk 0:00:46]} 21... Bh3+ {[%clk 0:01:25.4]} 22.
Kh2 {[%clk 0:00:45.7]} 22... Bg4 {[%clk 0:01:19.5]} 23. Qe3 {[%clk 0:00:44.7]}
23... Be6 {[%clk 0:01:10.2]} 24. Bg2 {[%clk 0:00:41.5]} 24... Qd8 {[%clk
0:01:02.9]} 25. Rxb4 {[%clk 0:00:40.9]} 25... cxb4 {[%clk 0:01:01.8]} 26. Nd5
{[%clk 0:00:38.3]} 26... f5 {[%clk 0:00:46.6]} 27. Nxe7+ {[%clk 0:00:19.3]}
27... Qxe7 {[%clk 0:00:45.4]} 28. Qb6 {[%clk 0:00:19.1]} 28... f4 {[%clk
0:00:40.1]} 29. Qxb4 {[%clk 0:00:18.8]} 29... fxg3+ {[%clk 0:00:35.3]} 30. fxg3
{[%clk 0:00:19.7]} 30... Qd7 {[%clk 0:00:19.7]} 31. Rb1 {[%clk 0:00:17]} 31...
h6 {[%clk 0:00:18.6]} 32. Qb6 {[%clk 0:00:15]} 32... Qf7 {[%clk 0:00:15.3]} 33.
Qxd6 {[%clk 0:00:12.2]} 33... Qf5 {[%clk 0:00:13.5]} 34. Rb6 {[%clk 0:00:08.8]}
34... Rf6 {[%clk 0:00:09.7]} 35. Rxa6 {[%clk 0:00:06.6]} 35... Qf2 {[%clk
0:00:07.1]} 36. Ra8+ {[%clk 0:00:06.6]} 36... Kh7 {[%clk 0:00:05.2]} 37. Qxe5
{[%clk 0:00:05.9]} 1-0

[Event "*** SCC Grand Prix: Titled Tuesday Blitz"]
[Site "Chess.com"]
[Date "2020.08.11"]
[Round "6"]
[White "ferch1ni"]
[Black "sorito"]
[Result "0-1"]
[WhiteElo "2271"]
[BlackElo "2456"]
[TimeControl "180+1"]
[EndTime "11:07:28 PDT"]
[Termination "sorito won by checkmate"]

1. e4 {[%clk 0:03:00.8]} 1... c6 {[%clk 0:02:58.8]} 2. Nf3 {[%clk 0:02:59.9]}
2... d6 {[%clk 0:02:59.7]} 3. d3 {[%clk 0:02:59.1]} 3... Nd7 {[%clk 0:03:00.6]}
4. Nbd2 {[%clk 0:02:59.8]} 4... e5 {[%clk 0:03:00.4]} 5. g3 {[%clk 0:03:00.7]}
5... Be7 {[%clk 0:03:00.7]} 6. Bg2 {[%clk 0:03:01.6]} 6... Ngf6 {[%clk 0:03:01]}
7. O-O {[%clk 0:03:02.5]} 7... O-O {[%clk 0:03:01.4]} 8. h4 {[%clk 0:03:03.4]}
8... Re8 {[%clk 0:03:01.7]} 9. Re1 {[%clk 0:03:04.3]} 9... Bf8 {[%clk
0:03:01.4]} 10. Nf1 {[%clk 0:03:04.9]} 10... d5 {[%clk 0:03:01.2]} 11. N1h2
{[%clk 0:03:02.8]} 11... dxe4 {[%clk 0:03:00.3]} 12. dxe4 {[%clk 0:03:03.7]}
12... Qc7 {[%clk 0:02:57.2]} 13. Bg5 {[%clk 0:02:56.9]} 13... h6 {[%clk
0:02:56.4]} 14. Be3 {[%clk 0:02:56.8]} 14... Nc5 {[%clk 0:02:53.9]} 15. Nd2
{[%clk 0:02:56.1]} 15... b5 {[%clk 0:02:51.7]} 16. a4 {[%clk 0:02:53.1]} 16...
Nxa4 {[%clk 0:02:50.6]} 17. c4 {[%clk 0:02:52.3]} 17... Nxb2 {[%clk 0:02:49.3]}
18. Qc2 {[%clk 0:02:52.6]} 18... Nxc4 {[%clk 0:02:49.2]} 19. Nxc4 {[%clk
0:02:52.8]} 19... bxc4 {[%clk 0:02:49.2]} 20. Qxc4 {[%clk 0:02:53.4]} 20... Be6
{[%clk 0:02:49.2]} 21. Qc3 {[%clk 0:02:52.5]} 21... a5 {[%clk 0:02:47.6]} 22.
Rec1 {[%clk 0:02:46.4]} 22... Rec8 {[%clk 0:02:46.8]} 23. Ra4 {[%clk 0:02:37.5]}
23... Bb4 {[%clk 0:02:45]} 24. Qc2 {[%clk 0:02:36.3]} 24... c5 {[%clk
0:02:42.5]} 25. Bf1 {[%clk 0:02:35.9]} 25... c4 {[%clk 0:02:40.8]} 26. Bd2
{[%clk 0:02:28.1]} 26... c3 {[%clk 0:02:37.9]} 27. Be3 {[%clk 0:02:26.3]} 27...
Qc6 {[%clk 0:02:31]} 28. Nf3 {[%clk 0:02:13.3]} 28... Ng4 {[%clk 0:02:19.9]} 29.
Raa1 {[%clk 0:01:49]} 29... Nxe3 {[%clk 0:02:18.5]} 30. fxe3 {[%clk 0:01:45.6]}
30... f6 {[%clk 0:02:16.3]} 31. Kf2 {[%clk 0:01:38.4]} 31... Rd8 {[%clk
0:02:11.7]} 32. g4 {[%clk 0:01:32.5]} 32... Bxg4 {[%clk 0:02:06.6]} 33. Be2
{[%clk 0:01:30.6]} 33... Qe6 {[%clk 0:01:51.3]} 34. Rg1 {[%clk 0:01:28.2]} 34...
h5 {[%clk 0:01:50.3]} 35. Qa4 {[%clk 0:01:17]} 35... Kh8 {[%clk 0:01:50]} 36.
Qb5 {[%clk 0:01:15.1]} 36... Rab8 {[%clk 0:01:48.9]} 37. Qa4 {[%clk 0:01:13.8]}
37... Rbc8 {[%clk 0:01:48.7]} 38. Rg3 {[%clk 0:01:03.5]} 38... c2 {[%clk
0:01:46.7]} 39. Rc1 {[%clk 0:01:04]} 39... Qc6 {[%clk 0:01:38.8]} 40. Qa2 {[%clk
0:00:59.3]} 40... Qxe4 {[%clk 0:01:38.1]} 41. Qf7 {[%clk 0:00:49.6]} 41... Qd5
{[%clk 0:01:29.2]} 42. Qg6 {[%clk 0:00:43.4]} 42... Qb3 {[%clk 0:00:54.2]} 43.
Rxg4 {[%clk 0:00:25.7]} 43... hxg4 {[%clk 0:00:53.2]} 44. Qxg4 {[%clk
0:00:26.3]} 44... Bc5 {[%clk 0:00:46.6]} 45. Bc4 {[%clk 0:00:06.2]} 45... Bxe3+
{[%clk 0:00:43.9]} 46. Kg2 {[%clk 0:00:05.5]} 46... Rxc4 {[%clk 0:00:44.5]} 47.
Qh5+ {[%clk 0:00:05.1]} 47... Kg8 {[%clk 0:00:42.9]} 48. Rf1 {[%clk 0:00:02.8]}
48... c1=Q {[%clk 0:00:41.8]} 49. Rxc1 {[%clk 0:00:02.7]} 49... Rxc1 {[%clk
0:00:41.1]} 50. Qf5 {[%clk 0:00:02.1]} 50... Rc2+ {[%clk 0:00:42]} 51. Kg3
{[%clk 0:00:02.1]} 51... Bf4+ {[%clk 0:00:40.5]} 52. Kg4 {[%clk 0:00:02.1]}
52... Rg2+ {[%clk 0:00:40.2]} 53. Kh5 {[%clk 0:00:02.4]} 53... Qf7+ {[%clk
0:00:40.2]} 54. Qg6 {[%clk 0:00:02.2]} 54... Qxg6# {[%clk 0:00:40.1]} 0-1